lending/lending_fUSD_20241211
["ID","MTS","AMOUNT","RATE_DAILY","PERIOD"]
[344972881,1733902250494,-187.66567238,0.00010996,2]
[344972882,1733902250504,-500.0,0.00010996,2]
[344972883,1733902250513,-615.69,0.00010996,2]
[344972884,1733902250524,-500.0,0.00010996,2]
[344972885,1733902250533,-3198.49,0.00010996,2]
[344972886,1733902250542,-606.37,0.00010996,2]
[344972887,1733902250552,-500.0,0.00010996,2]
[344972888,1733902250561,-500.0,0.00010996,2]
[344972889,1733902250571,-500.0,0.00010996,2]
[344972890,1733902250580,-500.0,0.00010996,2]
[344972891,1733902250590,-500.0,0.00010996,2]
[344972892,1733902250599,-500.0,0.00010996,2]
[344972893,1733902250609,-500.0,0.00010996,2]
[344972894,1733902250618,-14745.82,0.00010996,2]
[344972895,1733902250627,-500.0,0.00010996,2]
[344972896,1733902250637,-500.0,0.00010996,2]
[344972897,1733902250647,-9054.83,0.00010996,2]
[344972898,1733902250656,-500.0,0.00010996,2]
[344972899,1733902250666,-500.0,0.00010996,2]
[344972900,1733902250676,-500.0,0.00010996,2]
[344972901,1733902250685,-500.4,0.00010996,2]
[344972902,1733902250695,-500.0,0.00010996,2]
[344972903,1733902250704,-500.0,0.00010996,2]
[344972904,1733902250713,-558.85,0.00010996,2]
[344972905,1733902250723,-1320.76,0.00010996,2]
[344972906,1733902250733,-500.0,0.00010996,2]
[344972907,1733902250742,-500.0,0.00010996,2]
[344972908,1733902250752,-1370.3036,0.00010997,2]
[344972909,1733902250761,-500.0,0.00010997,2]
[344972910,1733902250771,-940.46,0.00010997,2]
[344972911,1733902250784,-500.0,0.00010997,2]
[344972912,1733902250793,-500.0,0.00010997,2]
[344972913,1733902250802,-235.28,0.00010997,2]
[344972914,1733902250812,-500.0,0.00010997,2]
[344972915,1733902250821,-500.0,0.00010997,2]
[344972916,1733902250831,-647.49699776,0.00010997,2]
[344972917,1733902250840,-500.0,0.00010997,2]
[344972918,1733902250849,-500.0,0.00010997,2]
[344972919,1733902250859,-500.0,0.00010997,2]
[344972920,1733902250868,-500.0,0.00010997,2]
[344972921,1733902250878,-651.63,0.00010997,2]
[344972922,1733902250887,-500.0,0.00010997,2]
[344972923,1733902250896,-500.0,0.00010997,2]
[344972924,1733902250907,-682.26,0.00010997,2]
[344972925,1733902250916,-500.0,0.00010997,2]
[344972926,1733902250925,-500.0,0.00010997,2]
[344972927,1733902250934,-500.0,0.00010997,2]
[344972928,1733902250944,-500.0,0.00010997,2]
[344972929,1733902250954,-500.0,0.00010997,2]
[344972930,1733902250963,-500.0,0.00010997,2]
[344972931,1733902250973,-500.0,0.00010997,2]
[344972932,1733902250984,-500.0,0.00010997,2]
[344972933,1733902250993,-500.0,0.00010997,2]
[344972934,1733902251002,-634.17,0.00010997,2]
[344972935,1733902251011,-500.0,0.00010997,2]
[344972936,1733902251020,-500.0,0.00010997,2]
[344972937,1733902251038,-500.0,0.00010997,2]
[344972938,1733902251048,-500.0,0.00010997,2]
[344972939,1733902251057,-500.0,0.00010997,2]
[344972940,1733902251066,-500.0,0.00010997,2]
[344972941,1733902251075,-500.0,0.00010997,2]
[344972942,1733902251084,-500.0,0.00010997,2]
[344972943,1733902251093,-801.32,0.00010997,2]
[344972944,1733902251102,-563.75,0.00010997,2]
[344972945,1733902251111,-525.44,0.00010997,2]
[344972946,1733902251120,-500.0,0.00010997,2]
[344972947,1733902251129,-500.0,0.00010997,2]
[344972948,1733902251138,-364.92,0.00010997,2]
[344972949,1733902251147,-500.0,0.00010997,2]
[344972950,1733902251156,-500.0,0.00010997,2]
[344972951,1733902251165,-500.0,0.00010997,2]
[344972952,1733902251175,-500.0,0.00010997,2]
[344972953,1733902251183,-500.0,0.00010997,2]
[344972954,1733902251193,-500.0,0.00010997,2]
[344972955,1733902251202,-1005.13,0.00010997,2]
[344972956,1733902251211,-500.0,0.00010997,2]
[344972957,1733902251220,-500.0,0.00010997,2]
[344972958,1733902251229,-500.0,0.00010997,2]
[344972959,1733902251238,-500.0,0.00010997,2]
[344972960,1733902251247,-500.0,0.00010997,2]
[344972961,1733902251256,-968.19,0.00010997,2]
[344972962,1733902251264,-500.0,0.00010997,2]
[344972963,1733902251275,-500.0,0.00010997,2]
[344972964,1733902251284,-500.0,0.00010997,2]
[344972965,1733902251292,-500.0,0.00010997,2]
[344972966,1733902251301,-500.0,0.00010997,2]
[344972967,1733902251311,-500.0,0.00010997,2]
[344972968,1733902251320,-913.39,0.00010997,2]
[344972969,1733902251329,-875.25,0.00010997,2]
[344972970,1733902251338,-500.0,0.00010997,2]
[344972971,1733902251347,-500.0,0.00010997,2]
[344972972,1733902251356,-504.43,0.00010997,2]
[344972973,1733902251365,-878.91,0.00010997,2]
[344972974,1733902251374,-500.0,0.00010997,2]
[344972975,1733902251383,-500.0,0.00010997,2]
[344972976,1733902251392,-1538.53,0.00010997,2]
[344972977,1733902251402,-500.0,0.00010997,2]
[344972978,1733902251411,-500.0,0.00010997,2]
[344972979,1733902251420,-1221.48,0.00010997,2]
[344972980,1733902251430,-500.0,0.00010997,2]
[344972981,1733902251439,-500.0,0.00010997,2]
[344972982,1733902251448,-1691.07,0.00010997,2]
[344972983,1733902251457,-500.0,0.00010997,2]
[344972984,1733902251466,-500.0,0.00010997,2]
[344972985,1733902251475,-500.0,0.00010997,2]
[344972986,1733902251484,-630.89,0.00010997,2]
[344972987,1733902251493,-500.0,0.00010997,2]
[344972988,1733902251502,-2647.18,0.00010997,2]
[344972989,1733902251511,-500.0,0.00010997,2]
[344972990,1733902251521,-500.0,0.00010997,2]
[344972991,1733902251530,-5176.16,0.00010997,2]
[344972992,1733902251539,-2161.71,0.00010997,2]
[344972993,1733902251549,-500.0,0.00010997,2]
[344972994,1733902251558,-1120.59,0.00010997,2]
[344972995,1733902251567,-780.18,0.00010997,2]
[344972996,1733902251576,-885.11,0.00010997,2]
[344972997,1733902251585,-500.0,0.00010997,2]
[344972998,1733902251594,-518.4,0.00010997,2]
[344972999,1733902251603,-500.0,0.00010997,2]
[344973000,1733902251612,-833.06,0.00010997,2]
[344973001,1733902251621,-958.3,0.00010997,2]
[344973002,1733902251630,-3198.54,0.00010997,2]
[344973003,1733902251639,-500.0,0.00010997,2]
[344973004,1733902251647,-1211.97,0.00010997,2]
[344973005,1733902251656,-500.0,0.00010997,2]
[344973006,1733902251666,-718.75,0.00010997,2]
[344973007,1733902251675,-500.0,0.00010997,2]
[344973008,1733902251684,-757.02,0.00010997,2]
[344973009,1733902251693,-500.0,0.00010997,2]
[344973010,1733902251702,-722.22,0.00010997,2]
[344973011,1733902251711,-500.0,0.00010997,2]
[344973012,1733902251720,-500.0,0.00010997,2]
[344973013,1733902251729,-500.0,0.00010997,2]
[344973014,1733902251738,-500.0,0.00010997,2]
[344973015,1733902251747,-500.0,0.00010997,2]
[344973016,1733902251756,-500.0,0.00010997,2]
[344973017,1733902251766,-500.0,0.00010997,2]
[344973018,1733902251776,-500.0,0.00010997,2]
[344973019,1733902251785,-500.0,0.00010997,2]
[344973020,1733902251794,-500.0,0.00010997,2]
[344973021,1733902251804,-581.79,0.00010997,2]
[344973022,1733902251813,-500.0,0.00010997,2]
[344973023,1733902251823,-1420.57,0.00010997,2]
[344973024,1733902251831,-500.0,0.00010997,2]
[344973025,1733902251841,-500.0,0.00010997,2]
[344973026,1733902251850,-500.0,0.00010997,2]
[344973027,1733902251859,-500.0,0.00010997,2]
[344973028,1733902251868,-481.68,0.00010997,2]
[344973029,1733902251878,-3685.95,0.00010997,2]
[344973030,1733902251887,-500.0,0.00010997,2]
[344973031,1733902251896,-500.0,0.00010997,2]
[344973032,1733902251908,-500.0,0.00010997,2]
[344973033,1733902251918,-500.0,0.00010997,2]
[344973034,1733902251927,-500.0,0.00010997,2]
[344973035,1733902251936,-500.0,0.00010997,2]
[344973036,1733902251946,-953.96,0.00010997,2]
[344973037,1733902251955,-500.0,0.00010997,2]
[344973038,1733902251964,-1288.09,0.00010997,2]
[344973039,1733902251974,-500.0,0.00010997,2]
[344973040,1733902251983,-500.0,0.00010997,2]
[344973041,1733902251993,-500.0,0.00010997,2]
[344973042,1733902252002,-500.0,0.00010997,2]
[344973043,1733902252011,-500.0,0.00010997,2]
[344973044,1733902252020,-1110.77,0.00010997,2]
[344973045,1733902252029,-545.96,0.00010997,2]
[344973046,1733902252039,-500.0,0.00010997,2]
[344973047,1733902252048,-500.0,0.00010997,2]
[344973048,1733902252058,-1419.49,0.00010997,2]
[344973049,1733902252067,-500.0,0.00010997,2]
[344973050,1733902252077,-531.84,0.00010997,2]
[344973051,1733902252086,-500.0,0.00010997,2]
[344973052,1733902252095,-500.0,0.00010997,2]
[344973053,1733902252104,-606.25,0.00010997,2]
[344973054,1733902252113,-500.0,0.00010997,2]
[344973055,1733902252123,-6829.54,0.00010997,2]
[344973056,1733902252132,-500.0,0.00010997,2]
[344973057,1733902252140,-1352.2,0.00010997,2]
[344973058,1733902252149,-2902.53,0.00010997,2]
[344973059,1733902252158,-500.0,0.00010997,2]
[344973060,1733902252167,-500.0,0.00010997,2]
[344973061,1733902252177,-1065.35,0.00010997,2]
[344973062,1733902252186,-1169.31,0.00010997,2]
[344973063,1733902252195,-500.0,0.00010997,2]
[344973064,1733902252204,-1635.93,0.00010997,2]
[344973065,1733902252213,-665.23,0.00010997,2]
[344973066,1733902252222,-500.0,0.00010997,2]
[344973067,1733902252231,-1889.98,0.00010997,2]
[344973068,1733902252241,-1447.1,0.00010997,2]
[344973069,1733902252249,-3039.13,0.00010997,2]
[344973070,1733902252258,-500.0,0.00010997,2]
[344973071,1733902252267,-500.0,0.00010997,2]
[344973072,1733902252277,-22344.12,0.00010997,2]
[344973073,1733902252286,-500.0,0.00010997,2]
[344973074,1733902252296,-500.0,0.00010997,2]
[344973075,1733902252305,-500.0,0.00010997,2]
[344973076,1733902252314,-500.0,0.00010997,2]
[344973077,1733902252323,-585.83,0.00010997,2]
[344973078,1733902252332,-500.0,0.00010997,2]
[344973079,1733902252341,-2021.5,0.00010997,2]
[344973080,1733902252350,-500.0,0.00010997,2]
[344973081,1733902252359,-1288.62,0.00010997,2]
[344973082,1733902252368,-500.0,0.00010997,2]
[344973083,1733902252377,-799.04,0.00010997,2]
[344973084,1733902252387,-500.0,0.00010997,2]
[344973085,1733902252396,-500.0,0.00010997,2]
[344973086,1733902252405,-500.0,0.00010997,2]
[344973087,1733902252415,-679.15,0.00010997,2]
[344973088,1733902252425,-172.11099931,0.00010997,2]
[344973089,1733902252434,-500.0,0.00010998,2]
[344973090,1733902252443,-500.0,0.00010998,2]
[344973091,1733902252452,-500.0,0.00010998,2]
[344973092,1733902252462,-500.0,0.00010998,2]
[344973093,1733902252471,-658.06,0.00010998,2]
[344973094,1733902252480,-500.0,0.00010998,2]
[344973095,1733902252489,-500.0,0.00010998,2]
[344973096,1733902252498,-500.0,0.00010998,2]
[344973097,1733902252507,-500.0,0.00010998,2]
[344973098,1733902252516,-727.71,0.00010998,2]
[344973099,1733902252526,-500.0,0.00010998,2]
[344973100,1733902252535,-500.0,0.00010998,2]
[344973101,1733902252544,-500.0,0.00010998,2]
[344973102,1733902252553,-500.0,0.00010998,2]
[344973103,1733902252562,-500.0,0.00010998,2]
[344973104,1733902252571,-500.0,0.00010998,2]
[344973105,1733902252580,-500.0,0.00010998,2]
[344973106,1733902252590,-500.0,0.00010998,2]
[344973107,1733902252599,-500.0,0.00010998,2]
[344973108,1733902252608,-500.0,0.00010998,2]
[344973109,1733902252617,-500.0,0.00010998,2]
[344973110,1733902252626,-500.0,0.00010998,2]
[344973111,1733902252635,-580.49,0.00010998,2]
[344973112,1733902252644,-500.0,0.00010998,2]
[344973113,1733902252653,-500.0,0.00010998,2]
[344973114,1733902252662,-875.65,0.00010998,2]
[344973115,1733902252672,-500.0,0.00010998,2]
[344973116,1733902252851,-500.0,0.00010998,2]
[344973117,1733902252861,-500.0,0.00010998,2]
[344973118,1733902252871,-500.0,0.00010998,2]
[344973119,1733902252881,-737.01,0.00010998,2]
[344973120,1733902252890,-500.0,0.00010998,2]
[344973121,1733902252899,-1248.67,0.00010998,2]
[344973122,1733902252912,-500.0,0.00010998,2]
[344973123,1733902252922,-500.0,0.00010998,2]
[344973124,1733902252932,-615.49,0.00010998,2]
[344973125,1733902252941,-519.62,0.00010998,2]
[344973126,1733902252951,-500.0,0.00010998,2]
[344973127,1733902252960,-500.0,0.00010998,2]
[344973128,1733902252970,-694.89,0.00010998,2]
[344973129,1733902252979,-500.0,0.00010998,2]
[344973130,1733902252989,-617.71,0.00010998,2]
[344973131,1733902252998,-500.0,0.00010998,2]
[344973132,1733902253008,-500.0,0.00010998,2]
[344973133,1733902253018,-500.0,0.00010998,2]
[344973134,1733902253029,-500.0,0.00010998,2]
[344973135,1733902253038,-682.87,0.00010998,2]
[344973136,1733902253048,-500.0,0.00010998,2]
[344973137,1733902253059,-525.77,0.00010998,2]
[344973138,1733902253069,-500.0,0.00010998,2]
[344973139,1733902253078,-500.0,0.00010998,2]
[344973140,1733902253087,-500.0,0.00010998,2]
[344973141,1733902253096,-500.0,0.00010998,2]
[344973142,1733902253109,-500.0,0.00010998,2]
[344973143,1733902253119,-500.0,0.00010998,2]
[344973144,1733902253128,-568.15,0.00010998,2]
[344973145,1733902253137,-500.0,0.00010998,2]
[344973146,1733902253147,-574.69,0.00010998,2]
[344973147,1733902253156,-642.13,0.00010998,2]
[344973148,1733902253166,-1244.99,0.00010998,2]
[344973149,1733902253175,-1027.1,0.00010998,2]
[344973150,1733902253185,-500.0,0.00010998,2]
[344973151,1733902253194,-500.0,0.00010998,2]
[344973152,1733902253203,-500.0,0.00010998,2]
[344973153,1733902253213,-500.0,0.00010998,2]
[344973154,1733902253223,-1457.04,0.00010998,2]
[344973155,1733902253232,-635.61,0.00010998,2]
[344973156,1733902253241,-500.0,0.00010998,2]
[344973157,1733902253250,-500.0,0.00010998,2]
[344973158,1733902253260,-586.45,0.00010998,2]
[344973159,1733902253269,-529.62,0.00010998,2]
[344973160,1733902253279,-1504.34,0.00010998,2]
[344973161,1733902253289,-500.0,0.00010998,2]
[344973162,1733902253298,-500.0,0.00010998,2]
[344973163,1733902253307,-500.0,0.00010998,2]
[344973164,1733902253316,-500.0,0.00010998,2]
[344973165,1733902253326,-500.0,0.00010998,2]
[344973166,1733902253335,-1020.81,0.00010998,2]
[344973167,1733902253344,-515.29,0.00010998,2]
[344973168,1733902253353,-500.0,0.00010998,2]
[344973169,1733902253363,-500.0,0.00010998,2]
[344973170,1733902253372,-500.0,0.00010998,2]
[344973171,1733902253381,-500.0,0.00010998,2]
[344973172,1733902253391,-696.73,0.00010998,2]
[344973173,1733902253400,-500.0,0.00010998,2]
[344973174,1733902253409,-500.0,0.00010998,2]
[344973175,1733902253419,-500.0,0.00010998,2]
[344973176,1733902253428,-500.0,0.00010998,2]
[344973177,1733902253438,-500.0,0.00010998,2]
[344973178,1733902253447,-293.47012247,0.00010998,2]
[344973179,1733902253457,-500.0,0.00010998,2]
[344973180,1733902253466,-500.0,0.00010998,2]
[344973181,1733902253476,-500.0,0.00010998,2]
[344973182,1733902253485,-500.0,0.00010998,2]
[344973183,1733902253495,-500.0,0.00010998,2]
[344973184,1733902253504,-500.0,0.00010998,2]
[344973185,1733902253513,-500.0,0.00010998,2]
[344973186,1733902253523,-500.0,0.00010998,2]
[344973187,1733902253532,-618.36,0.00010998,2]
[344973188,1733902253542,-500.0,0.00010998,2]
[344973189,1733902253551,-500.0,0.00010998,2]
[344973190,1733902253561,-500.0,0.00010998,2]
[344973191,1733902253570,-500.0,0.00010998,2]
[344973192,1733902253579,-500.0,0.00010998,2]
[344973193,1733902253588,-500.0,0.00010998,2]
[344973194,1733902253597,-500.0,0.00010998,2]
[344973195,1733902253606,-500.0,0.00010998,2]
[344973196,1733902253616,-500.0,0.00010998,2]
[344973197,1733902253625,-500.0,0.00010998,2]
[344973198,1733902253634,-500.0,0.00010998,2]
[344973199,1733902253643,-500.0,0.00010998,2]
[344973200,1733902253652,-500.0,0.00010998,2]
[344973201,1733902253661,-500.0,0.00010998,2]
[344973202,1733902253670,-500.0,0.00010998,2]
[344973203,1733902253679,-500.0,0.00010998,2]
[344973204,1733902253688,-500.0,0.00010998,2]
[344973205,1733902253697,-500.0,0.00010998,2]
[344973206,1733902253706,-500.0,0.00010998,2]
[344973207,1733902253715,-500.0,0.00010998,2]
[344973208,1733902253724,-847.35,0.00010998,2]
[344973209,1733902253733,-500.0,0.00010998,2]
[344973210,1733902253742,-1016.64,0.00010998,2]
[344973211,1733902253752,-912.88,0.00010998,2]
[344973212,1733902253762,-500.0,0.00010998,2]
[344973213,1733902253772,-500.0,0.00010998,2]
[344973214,1733902253781,-500.0,0.00010998,2]
[344973215,1733902253791,-500.0,0.00010998,2]
[344973216,1733902253800,-500.0,0.00010998,2]
[344973217,1733902253809,-500.0,0.00010998,2]
[344973218,1733902253819,-525.69,0.00010998,2]
[344973219,1733902253828,-500.0,0.00010998,2]
[344973220,1733902253837,-500.0,0.00010998,2]
[344973221,1733902253847,-500.0,0.00010998,2]
[344973222,1733902253857,-500.0,0.00010998,2]
[344973223,1733902253866,-500.0,0.00010998,2]
[344973224,1733902253876,-1730.986,0.00010999,2]
[344973225,1733902253885,-281.027,0.00010999,2]
[344973226,1733902253895,-500.0,0.00010999,2]
[344973227,1733902253904,-940.46,0.00010999,2]
[344973228,1733902253916,-500.0,0.00010999,2]
[344973229,1733902253925,-500.0,0.00010999,2]
[344973230,1733902253935,-500.0,0.00010999,2]
[344973231,1733902253944,-651.63,0.00010999,2]
[344973232,1733902253954,-500.0,0.00010999,2]
[344973233,1733902253963,-682.26,0.00010999,2]
[344973234,1733902253972,-500.0,0.00010999,2]
[344973235,1733902253983,-500.0,0.00010999,2]
[344973236,1733902253992,-500.0,0.00010999,2]
[344973237,1733902254001,-500.0,0.00010999,2]
[344973238,1733902254011,-500.0,0.00010999,2]
[344973239,1733902254020,-634.17,0.00010999,2]
[344973240,1733902254033,-500.0,0.00010999,2]
[344973241,1733902254042,-500.0,0.00010999,2]
[344973242,1733902254052,-500.0,0.00010999,2]
[344973243,1733902254062,-801.32,0.00010999,2]
[344973244,1733902254072,-563.75,0.00010999,2]
[344973245,1733902254081,-500.0,0.00010999,2]
[344973246,1733902254091,-500.0,0.00010999,2]
[344973247,1733902254101,-500.0,0.00010999,2]
[344973248,1733902254110,-500.0,0.00010999,2]
[344973249,1733902254119,-500.0,0.00010999,2]
[344973250,1733902254128,-1005.13,0.00010999,2]
[344973251,1733902254138,-500.0,0.00010999,2]
[344973252,1733902254147,-500.0,0.00010999,2]
[344973253,1733902254156,-968.19,0.00010999,2]
[344973254,1733902254165,-500.0,0.00010999,2]
[344973255,1733902254174,-500.0,0.00010999,2]
[344973256,1733902254184,-500.0,0.00010999,2]
[344973257,1733902254193,-913.39,0.00010999,2]
[344973258,1733902254202,-500.0,0.00010999,2]
[344973259,1733902254211,-878.91,0.00010999,2]
[344973260,1733902254221,-1538.53,0.00010999,2]
[344973261,1733902254230,-500.0,0.00010999,2]
[344973262,1733902254239,-1221.48,0.00010999,2]
[344973263,1733902254248,-1691.07,0.00010999,2]
[344973264,1733902254257,-500.0,0.00010999,2]
[344973265,1733902254266,-500.0,0.00010999,2]
[344973266,1733902254287,-500.0,0.00010999,2]
[344973267,1733902254300,-500.0,0.00010999,2]
[344973268,1733902254320,-780.18,0.00010999,2]
[344973269,1733902254334,-518.4,0.00010999,2]
[344973270,1733902254344,-500.0,0.00010999,2]
[344973271,1733902254353,-500.0,0.00010999,2]
[344973272,1733902254362,-500.0,0.00010999,2]
[344973273,1733902254372,-500.0,0.00010999,2]
[344973274,1733902254381,-500.0,0.00010999,2]
[344973275,1733902254390,-1420.57,0.00010999,2]
[344973276,1733902254400,-1288.09,0.00010999,2]
[344973277,1733902254410,-1419.49,0.00010999,2]
[344973278,1733902254419,-606.25,0.00010999,2]
[344973279,1733902254429,-1352.2,0.00010999,2]
[344973280,1733902254438,-1169.31,0.00010999,2]
[344973281,1733902254448,-1447.1,0.00010999,2]
[344973282,1733902254457,-500.0,0.00010999,2]
[344973283,1733902254466,-585.83,0.00010999,2]
[344973284,1733902254476,-1288.62,0.00010999,2]
[344973285,1733902254485,-679.15,0.00010999,2]
[344973286,1733902254495,-1000.0,0.00011,2]
[344973287,1733902254504,-500.0,0.00011073,2]
[344973288,1733902254514,-367.20242466,0.00011073,2]
[344973289,1733902254529,-1000.0,0.00011085,2]
[344973290,1733902254539,-500.0,0.00011093,2]
[344973291,1733902254548,-500.0,0.00011093,2]
[344973292,1733902254557,-500.0,0.00011093,2]
[344973293,1733902254567,-500.0,0.00011093,2]
[344973294,1733902254576,-4257.05,0.00011093,2]
[344973295,1733902254585,-615.53,0.00011093,2]
[344973296,1733902254594,-500.0,0.00011093,2]
[344973297,1733902254604,-3902.42,0.00011093,2]
[344973298,1733902254613,-500.0,0.00011093,2]
[344973299,1733902254622,-500.0,0.00011093,2]
[344973300,1733902254631,-540.87254808,0.00011093,2]
[344973301,1733902254640,-500.0,0.00011093,2]
[344973302,1733902254650,-500.4,0.00011093,2]
[344973303,1733902254660,-1320.76,0.00011093,2]
[344973304,1733902254672,-500.0,0.00011093,2]
[344973305,1733902254681,-3381.96187542,0.00011094,2]
[344973306,1733902254692,-500.0,0.00011094,2]
[344973307,1733902254702,-500.0,0.00011094,2]
[344973308,1733902254711,-500.0,0.00011094,2]
[344973309,1733902254722,-172.03,0.00011094,2]
[344973310,1733902254733,-500.0,0.00011094,2]
[344973311,1733902254744,-500.0,0.00011094,2]
[344973312,1733902254757,-559.25,0.00011094,2]
[344973313,1733902254771,-190.61,0.00011094,2]
[344973314,1733902254781,-500.0,0.00011094,2]
[344973315,1733902254791,-549.98,0.00011094,2]
[344973316,1733902254800,-500.0,0.00011094,2]
[344973317,1733902254809,-500.0,0.00011094,2]
[344973318,1733902254818,-500.0,0.00011094,2]
[344973319,1733902254828,-500.0,0.00011094,2]
[344973320,1733902254837,-500.0,0.00011094,2]
[344973321,1733902254847,-525.44,0.00011094,2]
[344973322,1733902254856,-500.0,0.00011094,2]
[344973323,1733902254865,-500.0,0.00011094,2]
[344973324,1733902254875,-500.0,0.00011094,2]
[344973325,1733902254884,-500.0,0.00011094,2]
[344973326,1733902254893,-500.0,0.00011094,2]
[344973327,1733902254903,-500.0,0.00011094,2]
[344973328,1733902254917,-500.0,0.00011094,2]
[344973329,1733902254926,-500.0,0.00011094,2]
[344973330,1733902254935,-500.0,0.00011094,2]
[344973331,1733902254944,-875.25,0.00011094,2]
[344973332,1733902254955,-500.0,0.00011094,2]
[344973333,1733902254964,-504.43,0.00011094,2]
[344973334,1733902254974,-160.03,0.00011094,2]
[344973335,1733902254984,-500.0,0.00011094,2]
[344973336,1733902254994,-500.0,0.00011094,2]
[344973337,1733902255003,-500.0,0.00011094,2]
[344973338,1733902255012,-500.0,0.00011094,2]
[344973339,1733902255022,-500.0,0.00011094,2]
[344973340,1733902255032,-500.0,0.00011094,2]
[344973341,1733902255042,-630.89,0.00011094,2]
[344973342,1733902255051,-2647.18,0.00011094,2]
[344973343,1733902255061,-500.0,0.00011094,2]
[344973344,1733902255070,-5176.16,0.00011094,2]
[344973345,1733902255079,-2161.71,0.00011094,2]
[344973346,1733902255088,-165.3513105,0.00011094,2]
[344973347,1733902255098,-1946.5,0.00011094,2]
[344973348,1733902255107,-1120.59,0.00011094,2]
[344973349,1733902255116,-500.0,0.00011094,2]
[344973350,1733902255126,-885.11,0.00011094,2]
[344973351,1733902255135,-500.0,0.00011094,2]
[344973352,1733902255144,-500.0,0.00011094,2]
[344973353,1733902255154,-833.06,0.00011094,2]
[344973354,1733902255163,-500.0,0.00011094,2]
[344973355,1733902255172,-500.0,0.00011094,2]
[344973356,1733902255181,-958.3,0.00011094,2]
[344973357,1733902255191,-3198.54,0.00011094,2]
[344973358,1733902255200,-1211.97,0.00011094,2]
[344973359,1733902255210,-718.75,0.00011094,2]
[344973360,1733902255219,-1218.89,0.00011094,2]
[344973361,1733902255228,-500.0,0.00011094,2]
[344973362,1733902255237,-757.02,0.00011094,2]
[344973363,1733902255246,-500.0,0.00011094,2]
[344973364,1733902255255,-722.22,0.00011094,2]
[344973365,1733902255264,-500.0,0.00011094,2]
[344973366,1733902255275,-1181.01,0.00011094,2]
[344973367,1733902255285,-500.0,0.00011094,2]
[344973368,1733902255295,-500.0,0.00011094,2]
[344973369,1733902255304,-500.0,0.00011094,2]
[344973370,1733902255314,-500.0,0.00011094,2]
[344973371,1733902255324,-500.0,0.00011094,2]
[344973372,1733902255333,-500.0,0.00011094,2]
[344973373,1733902255343,-1055.4,0.00011094,2]
[344973374,1733902255352,-500.0,0.00011094,2]
[344973375,1733902255361,-500.0,0.00011094,2]
[344973376,1733902255371,-581.79,0.00011094,2]
[344973377,1733902255381,-500.0,0.00011094,2]
[344973378,1733902255390,-500.0,0.00011094,2]
[344973379,1733902255399,-500.0,0.00011094,2]
[344973380,1733902255408,-500.0,0.00011094,2]